Workbook

Sheet 12-месечен паричен поток
A2: 12-месечен паричен поток | O2: Финансовата година започва на: | P2: 2013-07-01
A3: Име на фирма
A4: Адрес, град, пощенски код
A5: Телефон, имейл, уеб адрес
B7: Начало | C7: =Финансова_година -> 2013-07-01 | D7: =DATE(YEAR(C7),MONTH(C7)+1,1) -> 2013-08-01 | E7: =DATE(YEAR(D7),MONTH(D7)+1,1) -> 2013-09-01 | F7: 2013-10-01 | G7: 2013-11-01 | H7: 2013-12-01 | I7: 2014-01-01 | J7: 2014-02-01 | K7: 2014-03-01 | L7: 2014-04-01 | M7: 2014-05-01 | N7: 2014-06-01 | O7: Средно за месец | P7: Общ преглед
A8: Резюме на парични средства
A9: Касова наличност (началото на месеца) | B9: 55,000 | C9: =IF(Получени[[#Totals],[Колона3]]+Изплатени[[#Totals],[Колона3]]=0,"",B11) -> 67,593 | D9: =IF(Получени[[#Totals],[Колона4]]+Изплатени[[#Totals],[Колона4]]=0,"",C11) -> 54,265 | E9: =IF(Получени[[#Totals],[Колона5]]+Изплатени[[#Totals],[Колона5]]=0,"",D11) -> 55,739 | F9: =IF(Получени[[#Totals],[Колона6]]+Изплатени[[#Totals],[Колона6]]=0,"",E11) -> 69,290 | G9: =IF(Получени[[#Totals],[Колона7]]+Изплатени[[#Totals],[Колона7]]=0,"",F11) -> 65,618 | H9: =IF(Получени[[#Totals],[Колона8]]+Изплатени[[#Totals],[Колона8]]=0,"",G11) ->  | I9: =IF(Получени[[#Totals],[Колона9]]+Изплатени[[#Totals],[Колона9]]=0,"",H11) ->  | J9: =IF(Получени[[#Totals],[Колона10]]+Изплатени[[#Totals],[Колона10]]=0,"",I11) ->  | K9: =IF(Получени[[#Totals],[Колона11]]+Изплатени[[#Totals],[Колона11]]=0,"",J11) ->  | L9: =IF(Получени[[#Totals],[Колона12]]+Изплатени[[#Totals],[Колона12]]=0,"",K11) ->  | M9: =IF(Получени[[#Totals],[Колона13]]+Изплатени[[#Totals],[Колона13]]=0,"",L11) ->  | N9: =IF(Получени[[#Totals],[Колона14]]+Изплатени[[#Totals],[Колона14]]=0,"",M11) ->  | O9: =IFERROR(AVERAGE(РЕЗЮМЕ[[#This Row],[Колона3]:[Колона14]]),"") -> 62,501
A10: Налични средства (налични + бележки, преди изплащане) | B10: =SUM(B9,Получени[[#Totals],[Колона2]]) -> 67,593 | C10: =IF(C9="","",SUM(C9,Получени[[#Totals],[Колона3]])) -> 76,065 | D10: =IF(D9="","",SUM(D9,Получени[[#Totals],[Колона4]])) -> 83,301 | E10: =IF(E9="","",SUM(E9,Получени[[#Totals],[Колона5]])) -> 91,032 | F10: =IF(F9="","",SUM(F9,Получени[[#Totals],[Колона6]])) -> 89,662 | G10: =IF(G9="","",SUM(G9,Получени[[#Totals],[Колона7]])) -> 76,200 | H10: =IF(H9="","",SUM(H9,Получени[[#Totals],[Колона8]])) ->  | I10: =IF(I9="","",SUM(I9,Получени[[#Totals],[Колона9]])) ->  | J10: =IF(J9="","",SUM(J9,Получени[[#Totals],[Колона10]])) ->  | K10: =IF(K9="","",SUM(K9,Получени[[#Totals],[Колона11]])) ->  | L10: =IF(L9="","",SUM(L9,Получени[[#Totals],[Колона12]])) ->  | M10: =IF(M9="","",SUM(M9,Получени[[#Totals],[Колона13]])) ->  | N10: =IF(N9="","",SUM(N9,Получени[[#Totals],[Колона14]])) ->  | O10: =IFERROR(AVERAGE(РЕЗЮМЕ[[#This Row],[Колона3]:[Колона14]]),"") -> 83,252
A11: Позиция на парични средства (края на месеца) | B11: =(B10-Изплатени[[#Totals],[Колона2]]) -> 67,593 | C11: =IFERROR(C10-Изплатени[[#Totals],[Колона3]],"") -> 54,265 | D11: =IFERROR(D10-Изплатени[[#Totals],[Колона4]],"") -> 55,739 | E11: =IFERROR(E10-Изплатени[[#Totals],[Колона5]],"") -> 69,290 | F11: =IFERROR(F10-Изплатени[[#Totals],[Колона6]],"") -> 65,618 | G11: =IFERROR(G10-Изплатени[[#Totals],[Колона7]],"") -> 51,413 | H11: =IFERROR(H10-Изплатени[[#Totals],[Колона8]],"") ->  | I11: =IFERROR(I10-Изплатени[[#Totals],[Колона9]],"") ->  | J11: =IFERROR(J10-Изплатени[[#Totals],[Колона10]],"") ->  | K11: =IFERROR(K10-Изплатени[[#Totals],[Колона11]],"") ->  | L11: =IFERROR(L10-Изплатени[[#Totals],[Колона12]],"") ->  | M11: =IFERROR(M10-Изплатени[[#Totals],[Колона13]],"") ->  | N11: =IFERROR(N10-Изплатени[[#Totals],[Колона14]],"") ->  | O11: =IFERROR(AVERAGE(РЕЗЮМЕ[[#This Row],[Колона3]:[Колона14]]),"") -> 59,265
A13: Получени парични средства
A14: Продажби в брой | B14: 5,616 | C14: 3,889 | D14: 24,411 | E14: 31,642 | F14: 14,647 | G14: 3,034 | O14: =IFERROR(AVERAGE(Получени[[#This Row],[Колона3]:[Колона14]]),"") -> 15,525
A15: Вземания от кредитни сметки | B15: 4,498 | C15: 3,493 | D15: 1,987 | E15: 1,029 | F15: 2,911 | G15: 4,234 | O15: =IFERROR(AVERAGE(Получени[[#This Row],[Колона3]:[Колона14]]),"") -> 2,731
A16: Заем/други парични средства | B16: 2,479 | C16: 1,090 | D16: 2,638 | E16: 2,622 | F16: 2,814 | G16: 3,314 | O16: =IFERROR(AVERAGE(Получени[[#This Row],[Колона3]:[Колона14]]),"") -> 2,496
A17: Общо получени парични средства | B17: =SUBTOTAL(109,Получени[Колона2]) -> 12,593 | C17: =SUBTOTAL(109,Получени[Колона3]) -> 8,472 | D17: =SUBTOTAL(109,Получени[Колона4]) -> 29,036 | E17: =SUBTOTAL(109,Получени[Колона5]) -> 35,293 | F17: =SUBTOTAL(109,Получени[Колона6]) -> 20,372 | G17: =SUBTOTAL(109,Получени[Колона7]) -> 10,582 | H17: =SUBTOTAL(109,Получени[Колона8]) -> 0 | I17: =SUBTOTAL(109,Получени[Колона9]) -> 0 | J17: =SUBTOTAL(109,Получени[Колона10]) -> 0 | K17: =SUBTOTAL(109,Получени[Колона11]) -> 0 | L17: =SUBTOTAL(109,Получени[Колона12]) -> 0 | M17: =SUBTOTAL(109,Получени[Колона13]) -> 0 | N17: =SUBTOTAL(109,Получени[Колона14]) -> 0 | O17: =IFERROR(AVERAGE(Получени[[#Totals],[Колона3]:[Колона14]]),"") -> 8646
A19: Платени парични средства
A20: Покупки (определете) | C20: 521 | D20: 323 | E20: 274 | F20: 451 | G20: 104 | O20: =IFERROR(AVERAGE(Изплатени[[#This Row],[Колона3]:[Колона14]]),"") -> 335
A21: Бруто заплати (точна сума) | C21: 10,572 | D21: 14,514 | E21: 10,561 | F21: 13,170 | G21: 12,478 | O21: =IFERROR(AVERAGE(Изплатени[[#This Row],[Колона3]:[Колона14]]),"") -> 12,259
A22: Консумативи (офис и текущи) | C22: 250 | D22: 428 | E22: 165 | F22: 1,168 | G22: 345 | O22: =IFERROR(AVERAGE(Изплатени[[#This Row],[Колона3]:[Колона14]]),"") -> 471
A23: Ремонт и поддръжка | C23: 0 | D23: 2,200 | E23: 163 | F23: 67 | G23: 0 | O23: =IFERROR(AVERAGE(Изплатени[[#This Row],[Колона3]:[Колона14]]),"") -> 486
A24: Реклама | C24: 1,100 | D24: 625 | E24: 1,356 | F24: 0 | G24: 2,560 | O24: =IFERROR(AVERAGE(Изплатени[[#This Row],[Колона3]:[Колона14]]),"") -> 1,128
A25: Наем | C25: 3,500 | D25: 3,500 | E25: 3,500 | F25: 3,500 | G25: 3,500 | O25: =IFERROR(AVERAGE(Изплатени[[#This Row],[Колона3]:[Колона14]]),"") -> 3,500
A26: Комунални услуги | C26: 285 | D26: 318 | E26: 151 | F26: 134 | G26: 228 | O26: =IFERROR(AVERAGE(Изплатени[[#This Row],[Колона3]:[Колона14]]),"") -> 223
A27: Други (определете) | C27: 123 | D27: 234 | E27: 123 | F27: 234 | G27: 123 | O27: =IFERROR(AVERAGE(Изплатени[[#This Row],[Колона3]:[Колона14]]),"") -> 167
A28: Плащане по главницата на заема | C28: 4,000 | D28: 4,000 | E28: 4,000 | F28: 4,000 | G28: 4,000 | O28: =IFERROR(AVERAGE(Изплатени[[#This Row],[Колона3]:[Колона14]]),"") -> 4,000
A29: Покупка на капиталови активи (определете) | C29: 679 | D29: 700 | E29: 679 | F29: 650 | G29: 679 | O29: =IFERROR(AVERAGE(Изплатени[[#This Row],[Колона3]:[Колона14]]),"") -> 677
A30: Други начални разходи | C30: 400 | D30: 350 | E30: 400 | F30: 300 | G30: 400 | O30: =IFERROR(AVERAGE(Изплатени[[#This Row],[Колона3]:[Колона14]]),"") -> 370
A31: Резерв и/или депозирани задължения | C31: 300 | D31: 300 | E31: 300 | F31: 300 | G31: 300 | O31: =IFERROR(AVERAGE(Изплатени[[#This Row],[Колона3]:[Колона14]]),"") -> 300
A32: Изтегляне от собствениците | C32: 70 | D32: 70 | E32: 70 | F32: 70 | G32: 70 | O32: =IFERROR(AVERAGE(Изплатени[[#This Row],[Колона3]:[Колона14]]),"") -> 70
A33: Общо изплатени парични средства | C33: =SUBTOTAL(109,Изплатени[Колона3]) -> 21,800 | D33: =SUBTOTAL(109,Изплатени[Колона4]) -> 27,562 | E33: =SUBTOTAL(109,Изплатени[Колона5]) -> 21,742 | F33: =SUBTOTAL(109,Изплатени[Колона6]) -> 24,044 | G33: =SUBTOTAL(109,Изплатени[Колона7]) -> 24,787 | H33: =SUBTOTAL(109,Изплатени[Колона8]) -> 0 | I33: =SUBTOTAL(109,Изплатени[Колона9]) -> 0 | J33: =SUBTOTAL(109,Изплатени[Колона10]) -> 0 | K33: =SUBTOTAL(109,Изплатени[Колона11]) -> 0 | L33: =SUBTOTAL(109,Изплатени[Колона12]) -> 0 | M33: =SUBTOTAL(109,Изплатени[Колона13]) -> 0 | N33: =SUBTOTAL(109,Изплатени[Колона14]) -> 0 | O33: =IFERROR(AVERAGE(Изплатени[[#Totals],[Колона3]:[Колона14]]),"") -> 9,995
A35: Основни оперативни данни (информация за непарични потоци)
A36: Количество на продажбите (левове) | B36: 2,000 | C36: 2,500 | D36: 2,257 | E36: 2,387 | F36: 2,664 | G36: 2,324 | O36: =IFERROR(AVERAGE(Основни_оперативни_данни[[#This Row],[Колона2]:[Колона14]]),"") -> 2,355
A37: Вземания | B37: 1,500 | C37: 500 | D37: 886 | E37: 1,035 | F37: 1,775 | G37: 839 | O37: =IFERROR(AVERAGE(Основни_оперативни_данни[[#This Row],[Колона2]:[Колона14]]),"") -> 1,089
A38: Лоши дългове (края на месеца) | B38: 300 | C38: 200 | D38: 225 | E38: 269 | F38: 448 | G38: 359 | O38: =IFERROR(AVERAGE(Основни_оперативни_данни[[#This Row],[Колона2]:[Колона14]]),"") -> 300
A39: Наличен инвентар (края на месеца) | O39: =IFERROR(AVERAGE(Основни_оперативни_данни[[#This Row],[Колона2]:[Колона14]]),"") -> 
A40: Задължения (края на месеца) | O40: =IFERROR(AVERAGE(Основни_оперативни_данни[[#This Row],[Колона2]:[Колона14]]),"") -> 
A41: Амортизация | O41: =IFERROR(AVERAGE(Основни_оперативни_данни[[#This Row],[Колона2]:[Колона14]]),"") -> 

Sheet Резюме на паричен поток
J26: Точки за данни: | K26: 5
C27: (Плъзнете плъзгача нагоре, за да промените общия брой точки за данни за диаграмата.)
